fUST/lending_fUST_20250203
["ID","MTS","AMOUNT","RATE_DAILY","PERIOD"]
[351342537,1738523441664,-500.0,0.00016575,2]
[351342538,1738523441674,-500.0,0.00016575,2]
[351342539,1738523441689,-500.0,0.00016575,2]
[351342540,1738523441698,-500.0,0.00016575,2]
[351342541,1738523441708,-500.0,0.00016575,2]
[351342542,1738523441718,-247.16530172,0.00016575,2]
[351342543,1738523441728,-500.0,0.00016575,2]
[351342544,1738523441738,-500.0,0.00016575,2]
[351342545,1738523441747,-531.11,0.00016575,2]
[351342546,1738523441758,-474.70454211,0.00016575,2]
[351342547,1738523441768,-500.0,0.00016575,2]
[351342548,1738523441778,-1762.0,0.00016575,2]
[351342549,1738523441787,-502.92290859,0.00016575,2]
[351342550,1738523441797,-500.0,0.00016575,2]
[351342551,1738523441806,-500.0,0.00016575,2]
[351342552,1738523441816,-18401.63,0.00016575,2]
[351342553,1738523441825,-500.0,0.00016575,2]
[351342554,1738523441834,-500.0,0.00016575,2]
[351342555,1738523441845,-1005.75,0.00016575,2]
[351342556,1738523441855,-500.0,0.00016575,2]
[351342557,1738523441864,-830.26,0.00016575,2]
[351342558,1738523441873,-1569.05,0.00016575,2]
[351342559,1738523441883,-712.52,0.00016575,2]
[351342560,1738523441893,-500.0,0.00016575,2]
[351342561,1738523441902,-1000.0,0.00016575,7]
[351342562,1738523441912,-500.0,0.00016575,2]
[351342563,1738523441922,-500.0,0.00016575,2]
[351342564,1738523441935,-223.62874659,0.00016575,2]
[351342565,1738523441945,-501.73,0.00016575,2]
[351342566,1738523441954,-500.0,0.00016575,2]
[351342567,1738523441964,-500.0,0.00016575,2]
[351342568,1738523441974,-506.6143364,0.00016575,2]
[351342569,1738523441983,-500.0,0.00016575,2]
[351342570,1738523441993,-1518.04,0.00016575,2]
[351342571,1738523442003,-500.0,0.00016575,2]
[351342572,1738523442013,-8061.72,0.00016575,2]
[351342573,1738523442024,-500.0,0.00016575,2]
[351342574,1738523442033,-500.0,0.00016575,2]
[351342575,1738523442043,-500.0,0.00016575,2]
[351342576,1738523442052,-500.0,0.00016575,2]
[351342577,1738523442061,-668.48,0.00016575,2]
[351342578,1738523442071,-606.42,0.00016575,2]
[351342579,1738523442080,-500.0,0.00016575,2]
[351342580,1738523442089,-500.0,0.00016575,2]
[351342581,1738523442099,-3980.39,0.00016575,2]
[351342582,1738523442109,-752.11,0.00016575,2]
[351342583,1738523442119,-1637.71,0.00016575,2]
[351342584,1738523442128,-260.08,0.00016575,2]
[351342585,1738523442138,-500.0,0.00016575,2]
[351342586,1738523442148,-500.0,0.00016575,2]
[351342587,1738523442158,-500.0,0.00016575,2]
[351342588,1738523442167,-3000.0,0.0001658,2]
[351342589,1738523442178,-3403.204442,0.0001659,2]
[351342590,1738523442190,-500.0,0.00016711,2]
[351342591,1738523442200,-500.0,0.00016711,2]
[351342592,1738523442210,-6664.21,0.00016711,2]
[351342593,1738523442220,-500.0,0.00016711,2]
[351342594,1738523442229,-500.0,0.00016712,2]
[351342595,1738523442239,-500.0,0.00016712,2]
[351342596,1738523442251,-500.0,0.00016712,2]
[351342597,1738523442261,-500.0,0.00016712,2]
[351342598,1738523442270,-500.0,0.00016712,2]
[351342599,1738523442280,-500.0,0.00016712,2]
[351342600,1738523442289,-500.0,0.00016712,2]
[351342601,1738523442298,-500.0,0.00016712,2]
[351342602,1738523442308,-500.0,0.00016712,2]
[351342603,1738523442319,-500.0,0.00016712,2]
[351342604,1738523442328,-500.0,0.00016712,2]
[351342605,1738523442337,-500.0,0.00016712,2]
[351342606,1738523442347,-500.0,0.00016712,2]
[351342607,1738523442356,-500.0,0.00016712,2]
[351342608,1738523442365,-500.0,0.00016712,2]
[351342609,1738523442375,-500.0,0.00016712,2]
[351342610,1738523442385,-500.0,0.00016712,2]
[351342611,1738523442395,-500.0,0.00016712,2]
[351342612,1738523442405,-500.0,0.00016712,2]
[351342613,1738523442414,-500.0,0.00016712,2]
[351342614,1738523442425,-500.0,0.00016712,2]
[351342615,1738523442439,-500.0,0.00016712,2]
[351342616,1738523442448,-505.69021299,0.00016712,2]
[351342617,1738523442458,-500.0,0.00016712,2]
[351342618,1738523442467,-500.0,0.00016712,2]
[351342620,1738523442477,-500.0,0.00016712,2]
[351342622,1738523442487,-500.0,0.00016712,2]
[351342625,1738523442496,-500.0,0.00016712,2]
[351342628,1738523442506,-500.0,0.00016712,2]
[351342630,1738523442516,-482.88511878,0.00016712,2]
[351342631,1738523442606,-500.0,0.00016712,2]
[351342632,1738523442616,-500.0,0.00016712,2]
[351342633,1738523442625,-500.0,0.00016712,2]
[351342634,1738523442635,-500.0,0.00016712,2]
[351342638,1738523442645,-500.0,0.00016712,2]
[351342641,1738523442655,-500.0,0.00016712,2]
[351342644,1738523442665,-500.0,0.00016712,2]
[351342648,1738523442674,-500.0,0.00016712,2]
[351342650,1738523442686,-500.0,0.00016712,2]
[351342653,1738523442696,-500.0,0.00016712,2]
[351342655,1738523442706,-500.0,0.00016712,2]
[351342656,1738523442716,-500.0,0.00016712,2]
[351342657,1738523442726,-500.0,0.00016712,2]
[351342658,1738523442735,-500.0,0.00016712,2]
[351342659,1738523442745,-500.0,0.00016712,2]
[351342660,1738523442756,-500.0,0.00016712,2]
[351342661,1738523442766,-500.0,0.00016712,2]
[351342662,1738523442776,-500.0,0.00016712,2]
[351342664,1738523442786,-500.0,0.00016712,2]
[351342665,1738523442795,-500.0,0.00016712,2]
[351342666,1738523442804,-500.0,0.00016712,2]
[351342668,1738523442814,-662.89,0.00016712,2]
[351342669,1738523442823,-500.0,0.00016712,2]
[351342670,1738523442832,-500.0,0.00016712,2]
[351342671,1738523442842,-500.0,0.00016712,2]
[351342673,1738523442852,-500.0,0.00016712,2]
[351342675,1738523442861,-411.50978824,0.00016712,2]
[351342677,1738523442870,-575.77,0.00016712,2]
[351342679,1738523442880,-357.94840149,0.00016712,2]
[351342681,1738523442889,-500.0,0.00016712,2]
[351342682,1738523442899,-500.0,0.00016712,2]
[351342684,1738523442908,-500.0,0.00016712,2]
[351342685,1738523442917,-500.0,0.00016712,2]
[351342686,1738523442927,-500.0,0.00016712,2]
[351342687,1738523442938,-500.0,0.00016712,2]
[351342689,1738523442947,-500.0,0.00016712,2]
[351342690,1738523442957,-1715.93,0.00016712,2]
[351342691,1738523442966,-1846.93,0.00016712,2]
[351342692,1738523442976,-500.0,0.00016712,2]
[351342694,1738523442986,-500.0,0.00016712,2]
[351342695,1738523442996,-500.0,0.00016712,2]
[351342697,1738523443005,-866.61,0.00016712,2]
[351342699,1738523443014,-500.0,0.00016712,2]
[351342701,1738523443024,-500.0,0.00016712,2]
[351342702,1738523443033,-500.0,0.00016712,2]
[351342703,1738523443042,-515.61803568,0.00016712,2]
[351342704,1738523443052,-500.0,0.00016712,2]
[351342705,1738523443062,-939.35,0.00016712,2]
[351342706,1738523443071,-500.0,0.00016712,2]
[351342707,1738523443080,-3004.58,0.00016712,2]
[351342708,1738523443090,-500.0,0.00016712,2]
[351342710,1738523443099,-500.0,0.00016712,2]
[351342711,1738523443108,-500.0,0.00016712,2]
[351342712,1738523443117,-500.0,0.00016712,2]
[351342713,1738523443127,-1378.54,0.00016712,2]
[351342714,1738523443136,-1226.85,0.00016712,2]
[351342716,1738523443145,-500.0,0.00016712,2]
[351342717,1738523443154,-500.0,0.00016712,2]
[351342719,1738523443164,-504.29596468,0.00016712,2]
[351342721,1738523443173,-2220.36,0.00016712,2]
[351342723,1738523443185,-500.0,0.00016712,2]
[351342725,1738523443194,-500.0,0.00016712,2]
[351342726,1738523443204,-500.0,0.00016712,2]
[351342727,1738523443213,-500.0,0.00016712,2]
[351342728,1738523443222,-500.0,0.00016712,2]
[351342729,1738523443231,-531.11,0.00016712,2]
[351342730,1738523443240,-500.0,0.00016712,2]
[351342731,1738523443255,-1762.0,0.00016712,2]
[351342732,1738523443265,-500.0,0.00016712,2]
[351342733,1738523443275,-18401.63,0.00016712,2]
[351342734,1738523443284,-500.0,0.00016712,2]
[351342735,1738523443294,-1005.75,0.00016712,2]
[351342736,1738523443303,-830.26,0.00016712,2]
[351342737,1738523443313,-1569.05,0.00016712,2]
[351342738,1738523443325,-712.52,0.00016712,2]
[351342739,1738523443336,-500.0,0.00016712,2]
[351342740,1738523443346,-500.0,0.00016712,2]
[351342741,1738523443357,-500.0,0.00016712,2]
[351342742,1738523443367,-501.73,0.00016712,2]
[351342743,1738523443377,-500.0,0.00016712,2]
[351342744,1738523443387,-1518.04,0.00016712,2]
[351342745,1738523443397,-500.0,0.00016712,2]
[351342747,1738523443406,-8061.72,0.00016712,2]
[351342749,1738523443417,-500.0,0.00016712,2]
[351342751,1738523443427,-500.0,0.00016712,2]
[351342753,1738523443440,-500.0,0.00016712,2]
[351342755,1738523443451,-500.0,0.00016712,2]
[351342756,1738523443460,-668.48,0.00016712,2]
[351342757,1738523443471,-606.42,0.00016712,2]
[351342758,1738523443480,-500.0,0.00016712,2]
[351342759,1738523443489,-500.0,0.00016712,2]
[351342760,1738523443499,-3980.39,0.00016712,2]
[351342761,1738523443508,-752.11,0.00016712,2]
[351342762,1738523443518,-1637.71,0.00016712,2]
[351342763,1738523443527,-500.0,0.00016712,2]
[351342764,1738523443537,-500.0,0.00016712,2]
[351342765,1738523443547,-225.67917694,0.00016784,2]
[351342766,1738523443556,-500.0,0.00016848,2]
[351342767,1738523443566,-500.0,0.00016848,2]
[351342768,1738523443575,-6664.21,0.00016848,2]
[351342769,1738523443585,-500.0,0.00016848,2]
[351342770,1738523443595,-500.0,0.00016849,2]
[351342771,1738523443605,-500.0,0.00016849,2]
[351342772,1738523443614,-552.16297817,0.00016849,2]
[351342773,1738523443624,-500.0,0.00016849,2]
[351342774,1738523443633,-500.0,0.00016849,2]
[351342775,1738523443643,-500.0,0.00016849,2]
[351342776,1738523443653,-522.38312463,0.00016849,2]
[351342777,1738523443662,-500.0,0.00016849,2]
[351342778,1738523443671,-500.0,0.00016849,2]
[351342779,1738523443683,-500.0,0.00016849,2]
[351342780,1738523443692,-500.0,0.00016849,2]
[351342781,1738523443702,-500.0,0.00016849,2]
[351342782,1738523443712,-500.0,0.00016849,2]
[351342783,1738523443721,-500.0,0.00016849,2]
[351342784,1738523443731,-500.0,0.00016849,2]
[351342785,1738523443740,-500.0,0.00016849,2]
[351342786,1738523443750,-500.0,0.00016849,2]
[351342787,1738523443759,-500.0,0.00016849,2]
[351342788,1738523443770,-500.0,0.00016849,2]
[351342789,1738523443779,-500.0,0.00016849,2]
[351342790,1738523443789,-500.0,0.00016849,2]
[351342791,1738523443798,-40.46420743,0.00016849,2]
[351342792,1738523443932,-459.53579257,0.00016849,2]
[351342793,1738523443941,-104.22940612,0.00016849,2]
[351342794,1738523443953,-395.77059388,0.00016849,2]
[351342795,1738523443962,-95.97940112,0.00016849,2]
[351342796,1738523443974,-257.65,0.00016849,2]
[351342797,1738523444000,-146.37059888,0.00016849,2]
[351342798,1738523444009,-151.0,0.00016849,2]
[351342799,1738523444019,-400.58959503,0.00016849,2]
[351342800,1738523444028,-294.76892609,0.00016849,2]
[351342801,1738523444040,-205.23107391,0.00016849,2]
[351342802,1738523444050,-500.0,0.00016849,2]
[351342803,1738523444059,-500.0,0.00016849,2]
[351342804,1738523444069,-500.0,0.00016849,2]
[351342805,1738523444080,-500.0,0.00016849,2]
[351342806,1738523444090,-500.0,0.00016849,2]
[351342807,1738523444100,-500.0,0.00016849,2]
[351342808,1738523444109,-500.0,0.00016849,2]
[351342809,1738523444204,-29.56493565,0.00016849,2]
[351342810,1738523444217,-398.41069743,0.00016849,2]
[351342811,1738523444227,-662.89,0.00016849,2]
[351342812,1738523444237,-500.0,0.00016849,2]
[351342813,1738523444249,-500.0,0.00016849,2]
[351342814,1738523444258,-500.0,0.00016849,2]
[351342815,1738523444268,-575.77,0.00016849,2]
[351342816,1738523444277,-500.66644415,0.00016849,2]
[351342817,1738523444288,-500.0,0.00016849,2]
[351342818,1738523444297,-500.0,0.00016849,2]
[351342819,1738523444306,-590.48146899,0.00016849,2]
[351342820,1738523444316,-500.0,0.00016849,2]
[351342821,1738523444327,-1715.93,0.00016849,2]
[351342822,1738523444338,-1846.93,0.00016849,2]
[351342823,1738523444348,-500.0,0.00016849,2]
[351342824,1738523444358,-866.61,0.00016849,2]
[351342825,1738523444368,-500.0,0.00016849,2]
[351342826,1738523444379,-500.0,0.00016849,2]
[351342827,1738523444388,-500.0,0.00016849,2]
[351342828,1738523444398,-500.0,0.00016849,2]
[351342829,1738523444408,-939.35,0.00016849,2]
[351342830,1738523444417,-151.0,0.00016849,2]
[351342831,1738523444427,-500.0,0.00016849,2]
[351342832,1738523444444,-3004.58,0.00016849,2]
[351342833,1738523444454,-151.0,0.00016849,2]
[351342834,1738523444464,-123.17882471,0.00016849,2]
[351342835,1738523444477,-376.82117529,0.00016849,2]
[351342836,1738523444488,-546.42638686,0.00016849,2]
[351342837,1738523444499,-403.43518219,0.00016849,2]
[351342838,1738523444509,-367.778943,0.00016849,2]
[351342839,1738523444519,-500.0,0.00016849,2]
[351342840,1738523444530,-1378.54,0.00016849,2]
[351342841,1738523444540,-1226.85,0.00016849,2]
[351342842,1738523444550,-367.778943,0.00016849,2]
[351342843,1738523444559,-500.0,0.00016849,2]
[351342844,1738523444569,-500.0,0.00016849,2]
[351342845,1738523444580,-2220.36,0.00016849,2]
[351342846,1738523444590,-500.0,0.00016849,2]
[351342847,1738523444600,-500.0,0.00016849,2]
[351342848,1738523444610,-500.0,0.00016849,2]
[351342849,1738523444620,-500.0,0.00016849,2]
[351342850,1738523444630,-213.371535,0.00016849,2]
[351342851,1738523444640,-213.371535,0.00016849,2]
[351342852,1738523444650,-500.0,0.00016849,2]
[351342853,1738523444660,-531.11,0.00016849,2]
[351342854,1738523444669,-1179.70098793,0.00016849,2]
[351342855,1738523444692,-582.29901207,0.00016849,2]
[351342856,1738523444703,-500.0,0.00016849,2]
[351342857,1738523444712,-151.0,0.00016849,2]
[351342858,1738523444722,-3230.6184342,0.00016849,2]
[351342859,1738523444735,-15171.0115658,0.00016849,2]
[351342860,1738523444745,-500.0,0.00016849,2]
[351342861,1738523444756,-1005.75,0.00016849,2]
[351342862,1738523444766,-830.26,0.00016849,2]
[351342863,1738523444776,-1569.05,0.00016849,2]
[351342864,1738523444787,-151.0,0.00016849,2]
[351342865,1738523444796,-712.52,0.00016849,2]
[351342866,1738523444807,-500.0,0.00016849,2]
[351342867,1738523444816,-500.0,0.00016849,2]
[351342868,1738523444826,-500.0,0.00016849,2]
[351342869,1738523444835,-501.73,0.00016849,2]
[351342870,1738523444845,-500.0,0.00016849,2]
[351342871,1738523444854,-1518.04,0.00016849,2]
[351342872,1738523444864,-500.0,0.00016849,2]
[351342873,1738523444873,-8061.72,0.00016849,2]
[351342874,1738523444883,-500.0,0.00016849,2]
[351342875,1738523444892,-500.0,0.00016849,2]
[351342876,1738523444902,-500.0,0.00016849,2]
[351342877,1738523444911,-500.0,0.00016849,2]
[351342878,1738523444921,-668.48,0.00016849,2]
[351342879,1738523444935,-606.42,0.00016849,2]
[351342880,1738523444945,-500.0,0.00016849,2]
[351342881,1738523444955,-500.0,0.00016849,2]
[351342882,1738523444964,-3980.39,0.00016849,2]
[351342883,1738523444973,-752.11,0.00016849,2]
[351342884,1738523444983,-1637.71,0.00016849,2]
[351342885,1738523444992,-151.0,0.00016849,2]
[351342886,1738523445001,-730.066538,0.00016849,2]
[351342887,1738523445017,-500.0,0.00016849,2]
[351342888,1738523445034,-151.0,0.00016849,2]
[351342889,1738523445049,-730.066538,0.00016849,2]
[351342890,1738523445063,-635.57772743,0.00016849,2]
[351342891,1738523445077,-500.0,0.00016874,2]
[351342892,1738523445094,-1034.16437988,0.000169,2]
[351342893,1738523445109,-1034.16437963,0.00016934,2]
[351342894,1738523445124,-1034.16437963,0.00016969,2]
[351342895,1738523445140,-6664.21,0.00016985,2]
[351342896,1738523445154,-500.0,0.00016985,2]
[351342897,1738523445168,-500.0,0.00016986,2]
[351342898,1738523445185,-151.0,0.00016986,2]
[351342899,1738523445201,-500.0,0.00016986,2]
[351342900,1738523445216,-500.0,0.00016986,2]
[351342901,1738523445226,-500.0,0.00016986,2]
[351342902,1738523445240,-204.85,0.00016986,2]
[351342903,1738523445254,-151.0,0.00016986,2]
[351342904,1738523445268,-500.0,0.00016986,2]
[351342905,1738523445282,-500.0,0.00016986,2]
[351342906,1738523445299,-629.06932102,0.00016986,2]
[351342907,1738523445314,-500.0,0.00016986,2]
[351342908,1738523445330,-500.0,0.00016986,2]
[351342909,1738523445341,-430.882438,0.00016986,2]
[351342910,1738523445352,-500.0,0.00016986,2]
[351342911,1738523445366,-430.882438,0.00016986,2]
[351342912,1738523445381,-151.0,0.00016986,2]
[351342913,1738523445396,-151.0,0.00016986,2]
[351342914,1738523445408,-151.0,0.00016986,2]
[351342915,1738523445421,-500.0,0.00016986,2]
[351342916,1738523445439,-500.0,0.00016986,2]
[351342917,1738523445451,-151.0,0.00016986,2]
[351342918,1738523445462,-500.0,0.00016986,2]
[351342919,1738523445475,-151.0,0.00016986,2]
[351342920,1738523445488,-500.0,0.00016986,2]
[351342922,1738523445501,-500.0,0.00016986,2]
[351342923,1738523445513,-500.0,0.00016986,2]
[351342925,1738523445526,-500.0,0.00016986,2]
[351342926,1738523445538,-500.0,0.00016986,2]
[351342927,1738523445550,-248.35368461,0.00016986,2]
[351342929,1738523445562,-500.0,0.00016986,2]
[351342931,1738523445574,-500.0,0.00016986,2]
[351342933,1738523445587,-662.89,0.00016986,2]
[351342934,1738523445599,-500.0,0.00016986,2]
[351342936,1738523445612,-500.0,0.00016986,2]
[351342938,1738523445624,-500.0,0.00016986,2]
[351342941,1738523445636,-575.77,0.00016986,2]
[351342944,1738523445648,-378.84327571,0.00016986,2]
[351342946,1738523445661,-500.0,0.00016986,2]
[351342948,1738523445673,-500.0,0.00016986,2]
[351342950,1738523445689,-1715.93,0.00016986,2]
[351342953,1738523445702,-1846.93,0.00016986,2]
[351342955,1738523445715,-500.0,0.00016986,2]
[351342957,1738523445727,-866.61,0.00016986,2]
[351342959,1738523445739,-500.0,0.00016986,2]
[351342960,1738523445752,-500.0,0.00016986,2]
[351342961,1738523445765,-500.0,0.00016986,2]
[351342962,1738523445777,-500.0,0.00016986,2]
[351342963,1738523445790,-939.35,0.00016986,2]
[351342965,1738523445802,-500.0,0.00016986,2]
[351342967,1738523445815,-3004.58,0.00016986,2]
[351342969,1738523445827,-500.0,0.00016986,2]
[351342970,1738523445840,-255.02631378,0.00016986,2]
[351342971,1738523445850,-1378.54,0.00016986,2]
[351342972,1738523445859,-1226.85,0.00016986,2]
[351342973,1738523445869,-500.0,0.00016986,2]
[351342974,1738523445878,-500.0,0.00016986,2]
[351342975,1738523445888,-2220.36,0.00016986,2]
[351342976,1738523445898,-500.0,0.00016986,2]
[351342978,1738523445907,-500.0,0.00016986,2]
[351342979,1738523445917,-500.0,0.00016986,2]
[351342980,1738523445927,-500.0,0.00016986,2]
[351342981,1738523445941,-531.11,0.00016986,2]
[351342983,1738523445951,-1762.0,0.00016986,2]
[351342984,1738523445962,-500.0,0.00016986,2]
[351342985,1738523445972,-18401.63,0.00016986,2]
[351342987,1738523445981,-500.0,0.00016986,2]
[351342989,1738523445991,-1005.75,0.00016986,2]
[351342990,1738523446002,-830.26,0.00016986,2]
[351342998,1738523446012,-1569.05,0.00016986,2]
[351343000,1738523446173,-712.52,0.00016986,2]
[351343002,1738523446186,-500.0,0.00016986,2]
[351343003,1738523446195,-506.45,0.00016986,2]
[351343004,1738523446207,-500.0,0.00016986,2]
[351343005,1738523446217,-501.73,0.00016986,2]
[351343006,1738523446226,-500.0,0.00016986,2]
[351343007,1738523446236,-1518.04,0.00016986,2]
[351343008,1738523446247,-500.0,0.00016986,2]
[351343009,1738523446257,-8061.72,0.00016986,2]
[351343010,1738523446268,-500.0,0.00016986,2]
[351343011,1738523446278,-500.0,0.00016986,2]
[351343012,1738523446289,-500.0,0.00016986,2]
[351343013,1738523446299,-500.0,0.00016986,2]
[351343014,1738523446310,-668.48,0.00016986,2]
[351343015,1738523446320,-606.42,0.00016986,2]
[351343017,1738523446331,-500.0,0.00016986,2]
[351343019,1738523446342,-3980.39,0.00016986,2]
[351343021,1738523446353,-752.11,0.00016986,2]
[351343024,1738523446364,-1637.71,0.00016986,2]
[351343026,1738523446375,-500.0,0.00016986,2]
[351343028,1738523446386,-1034.16437963,0.00017003,2]
[351343031,1738523446396,-506.728,0.00017004,2]
[351343033,1738523446406,-156.277,0.00017004,2]
[351343035,1738523446416,-225.67917694,0.00017007,2]
[351343036,1738523446427,-1000.0,0.00017021,2]
[351343037,1738523446442,-501.82945695,0.00017021,2]
[351343038,1738523446452,-151.0,0.00017036,2]
[351343039,1738523446462,-151.0,0.00017036,2]
[351343040,1738523446471,-1034.16437963,0.00017038,2]
[351343041,1738523446480,-213.371535,0.00017038,2]
[351343042,1738523446489,-213.371535,0.00017038,2]
[351343043,1738523446499,-151.0,0.00017038,2]
[351343044,1738523446509,-706.009642,0.00017041,2]
[351343045,1738523446518,-1034.16437963,0.00017072,2]
[351343046,1738523446529,-653.26602,0.00017087,2]
[351343047,1738523446539,-151.0,0.000171,2]
[351343048,1738523446548,-1034.16437963,0.00017107,2]
[351343049,1738523446557,-6664.21,0.00017122,2]
[351343050,1738523446568,-500.0,0.00017122,2]
[351343051,1738523446578,-151.0,0.00017122,2]
[351343052,1738523446588,-151.0,0.00017122,2]
[351343053,1738523446598,-730.066538,0.00017122,2]
[351343054,1738523446609,-730.066538,0.00017122,2]
[351343055,1738523446618,-151.0,0.00017122,2]
[351343056,1738523446628,-506.58122246,0.00017123,2]
[351343057,1738523446638,-500.0,0.00017123,2]
[351343058,1738523446647,-500.0,0.00017123,2]
[351343059,1738523446657,-420.73064664,0.00017123,2]
[351343060,1738523446666,-500.0,0.00017123,2]
[351343061,1738523446675,-500.0,0.00017123,2]
[351343062,1738523446689,-500.0,0.00017123,2]
[351343063,1738523446698,-430.882438,0.00017123,2]
[351343064,1738523446708,-500.0,0.00017123,2]
[351343065,1738523446719,-430.882438,0.00017123,2]
[351343066,1738523446728,-151.0,0.00017123,2]
[351343067,1738523446738,-500.0,0.00017123,2]
[351343068,1738523446748,-500.0,0.00017123,2]
[351343069,1738523446758,-151.0,0.00017123,2]
[351343070,1738523446768,-500.0,0.00017123,2]
[351343071,1738523446778,-151.0,0.00017123,2]
[351343072,1738523446788,-151.0,0.00017123,2]
[351343073,1738523446798,-500.0,0.00017123,2]
[351343074,1738523446808,-500.0,0.00017123,2]
[351343075,1738523446819,-500.0,0.00017123,2]
[351343076,1738523446829,-500.0,0.00017123,2]
[351343077,1738523446839,-582.70058114,0.00017123,2]
[351343078,1738523446850,-500.0,0.00017123,2]
[351343079,1738523446860,-500.0,0.00017123,2]
[351343080,1738523446869,-662.89,0.00017123,2]
[351343081,1738523446879,-589.63229093,0.00017123,2]
[351343082,1738523446889,-500.0,0.00017123,2]
[351343083,1738523446900,-500.0,0.00017123,2]
[351343084,1738523446910,-575.77,0.00017123,2]
[351343085,1738523446919,-500.0,0.00017123,2]
[351343086,1738523446929,-500.0,0.00017123,2]
[351343087,1738523446942,-1715.93,0.00017123,2]
[351343088,1738523446951,-1846.93,0.00017123,2]
[351343089,1738523446961,-500.0,0.00017123,2]
[351343090,1738523446971,-866.61,0.00017123,2]
[351343091,1738523446980,-500.0,0.00017123,2]
[351343092,1738523446991,-500.0,0.00017123,2]
[351343093,1738523447001,-500.0,0.00017123,2]
[351343094,1738523447011,-500.0,0.00017123,2]
[351343095,1738523447021,-939.35,0.00017123,2]
[351343096,1738523447031,-500.0,0.00017123,2]
[351343097,1738523447040,-3004.58,0.00017123,2]
[351343098,1738523447050,-500.0,0.00017123,2]
[351343099,1738523447061,-367.778943,0.00017123,2]
[351343100,1738523447070,-1378.54,0.00017123,2]
[351343101,1738523447080,-1226.85,0.00017123,2]
[351343102,1738523447090,-367.778943,0.00017123,2]
[351343103,1738523447100,-500.0,0.00017123,2]
[351343104,1738523447111,-2220.36,0.00017123,2]
[351343105,1738523447124,-500.0,0.00017123,2]
[351343106,1738523447134,-500.0,0.00017123,2]
[351343107,1738523447144,-500.0,0.00017123,2]
[351343108,1738523447154,-500.0,0.00017123,2]
[351343109,1738523447164,-531.11,0.00017123,2]
[351343110,1738523447175,-1762.0,0.00017123,2]
[351343111,1738523447189,-500.0,0.00017123,2]
[351343112,1738523447200,-18401.63,0.00017123,2]
[351343113,1738523447212,-500.0,0.00017123,2]
[351343114,1738523447222,-1005.75,0.00017123,2]
[351343115,1738523447231,-830.26,0.00017123,2]
[351343116,1738523447241,-1569.05,0.00017123,2]
[351343117,1738523447255,-712.52,0.00017123,2]
[351343118,1738523447266,-500.0,0.00017123,2]
[351343119,1738523447277,-403.97391244,0.00017123,2]
[351343120,1738523447287,-501.73,0.00017123,2]
[351343121,1738523447298,-500.0,0.00017123,2]
[351343122,1738523447309,-1518.04,0.00017123,2]
[351343123,1738523447319,-208.32218055,0.00017123,2]
[351343124,1738523447330,-8061.72,0.00017123,2]
[351343125,1738523447340,-500.0,0.00017123,2]
[351343126,1738523447349,-500.0,0.00017123,2]
[351343127,1738523447359,-612.66,0.00017123,2]